bitfinex/quotes_ETHUSD_20260107
["timestamp","ask_amount","ask_price","bid_price","bid_amount"]
[1767783655496,4.75562081,3217.7,3216.8,0.002]
[1767783655718,0.7552933,3217.5,3216.8,0.002]
[1767783655935,0.7552933,3217.5,3216.8,0.91775968]
[1767783658617,0.7552933,3217.5,3217.1,0.002]
[1767783658789,0.7552933,3217.5,3216.8,0.002]
[1767783659222,0.7562933,3217.5,3216.8,0.002]
[1767783659823,0.7552933,3217.4,3216.8,0.94219469]
[1767783660119,0.52578858,3217.5,3216.8,0.94219469]
[1767783662499,1.28108188,3217.5,3216.8,0.94219469]
[1767783663429,0.7552933,3217.4,3216.8,0.94219469]
[1767783665138,0.52578858,3217.5,3216.8,0.94219469]
[1767783666830,0.7552933,3218.5,3217.5,0.92184659]
[1767783667132,0.001,3218.6,3217.5,0.92184659]
[1767783667439,0.001,3218.6,3218.3,0.92184659]
[1767783667625,0.001,3218.6,3218.3,0.91784659]
[1767783668216,0.001,3218.6,3217.4,0.92184659]
[1767783668410,0.001,3218.6,3217.6,0.92184659]
[1767783668699,0.001,3218.6,3217.8,0.92184659]
[1767783668913,0.001,3218.8,3218.6,0.92184659]
[1767783669121,0.001,3218.8,3218.6,0.91984659]
[1767783672839,0.7642933,3219.8,3218.8,0.92184659]
[1767783673849,0.7642933,3220.1,3218.8,0.92184659]
[1767783674938,0.52172632,3220.2,3218.8,0.92184659]
[1767783675614,1.28601962,3220.2,3218.8,0.92184659]
[1767783675944,0.7642933,3220.1,3218.8,0.92184659]
[1767783676307,4.76462081,3220.1,3218.8,0.92184659]
[1767783676630,0.52863471,3220.0,3218.8,0.92184659]
[1767783679910,1.28601962,3220.2,3218.8,0.92184659]
[1767783680235,0.52172632,3220.2,3218.8,0.92184659]
[1767783680828,4.24642061,3220.3,3219.1,0.92184659]
[1767783681027,4.76462081,3221.0,3219.1,0.92184659]
[1767783681639,0.7642933,3220.9,3219.1,0.92184659]
[1767783682141,0.7642933,3220.9,3219.3,0.92184659]
[1767783682642,0.001,3220.7,3219.3,0.92184659]
[1767783682811,0.001,3220.7,3219.5,0.92184659]
[1767783684642,0.001,3220.7,3219.6,0.92184659]
[1767783690047,0.7652933,3220.7,3219.8,0.92184659]
[1767783690353,0.7642933,3220.6,3219.8,0.92184659]
[1767783694648,4.00132751,3220.7,3219.8,0.92184659]
[1767783694649,0.001,3220.7,3219.8,0.92184659]
[1767783697447,0.7652933,3220.7,3219.8,0.92184659]
[1767783699257,0.7652933,3220.7,3219.9,1.10668098]
[1767783701650,0.001,3220.7,3219.9,1.10668098]
[1767783705568,0.001,3220.4,3219.9,1.10668098]
[1767783710161,0.7652933,3220.4,3219.7,0.93299632]
[1767783710395,0.91342131,3220.2,3218.7,0.93299632]
[1767783710676,0.91342131,3220.2,3218.9,0.93299632]
[1767783710846,0.91342131,3220.2,3219.0,0.03106554]
[1767783711467,0.91342131,3220.2,3219.0,0.96406186]
[1767783711998,0.91342131,3220.2,3219.1,1.42943526]
[1767783712309,0.91342131,3220.2,3219.2,0.03106361]
[1767783712599,0.91342131,3220.2,3219.3,0.814]
[1767783713092,0.91342131,3220.2,3219.3,1.77805897]
[1767783713294,0.001,3220.4,3219.4,0.93299632]
[1767783713500,0.001,3220.4,3219.6,0.93299632]
[1767783715884,0.91442131,3220.4,3219.6,0.93299632]
[1767783717795,0.001,3220.1,3219.6,0.93299632]
[1767783723224,0.001,3220.1,3219.8,0.91399249]
[1767783724199,0.92237311,3220.6,3219.8,0.91399249]
[1767783724717,0.97037311,3221.0,3220.0,0.91399249]
[1767783725749,0.97037311,3221.0,3220.1,0.91399249]
[1767783726038,0.97037311,3221.0,3220.3,0.91399249]
[1767783730580,0.97037311,3221.2,3220.3,0.94504549]
[1767783730778,0.97037311,3221.2,3220.3,0.031053]
[1767783730993,0.001,3220.7,3220.4,0.91399249]
[1767783734161,0.001,3220.7,3220.2,1.08689174]
[1767783738390,0.001,3220.7,3220.4,0.91399249]
[1767783739698,0.001,3220.7,3220.2,1.08689174]
[1767783741589,0.97137311,3220.7,3220.2,0.17289925]
[1767783742789,0.97137311,3220.7,3220.5,0.002]
[1767783743458,0.97137311,3220.7,3220.1,0.002]
[1767783743856,0.97137311,3220.7,3219.7,0.91399249]
[1767783744061,0.97137311,3220.7,3219.4,1.72799249]
[1767783744660,0.97037311,3220.6,3219.2,0.91399249]
[1767783744872,0.97037311,3220.6,3218.9,0.002]
[1767783744873,0.97037311,3220.1,3218.9,0.002]
[1767783747180,0.97037311,3220.0,3218.5,0.91399249]
[1767783747977,0.97037311,3220.0,3217.7,0.002]
[1767783747978,0.97037311,3219.6,3217.8,0.91399249]
[1767783748177,0.97037311,3219.6,3218.1,0.91399249]
[1767783748376,3.9932897,3219.7,3218.1,0.91399249]
[1767783748377,0.97037311,3219.4,3218.1,0.91399249]
[1767783754983,0.97037311,3219.4,3218.4,0.002]
[1767783755377,0.97037311,3219.4,3218.4,0.94380143]
[1767783755572,0.92699759,3220.0,3218.4,0.94380143]
[1767783758675,0.92699759,3220.0,3218.6,0.94180143]
[1767783758901,0.92699759,3219.8,3218.6,0.94180143]
[1767783759198,0.17399976,3219.9,3218.8,0.94180143]
[1767783759506,0.92699759,3220.4,3218.8,0.9728689]
[1767783761005,4.8072897,3220.7,3218.8,1.75680143]
[1767783761006,0.92699759,3220.1,3218.8,1.75680143]
[1767783761671,0.92699759,3220.1,3218.9,0.94180143]
[1767783764204,0.92699759,3220.0,3218.9,0.94180143]
[1767783764503,1.37973798,3220.0,3218.5,0.94180143]
[1767783764705,1.14627139,3219.9,3218.5,0.94180143]
[1767783765005,1.14627139,3219.9,3218.0,0.94380143]
[1767783765006,0.92699759,3219.6,3218.0,0.94380143]
[1767783765301,0.92699759,3219.4,3218.0,0.94380143]
[1767783766996,0.92699759,3219.4,3218.7,0.002]
[1767783767180,0.92699759,3219.2,3218.1,0.94180143]
[1767783767503,0.92699759,3219.2,3218.4,0.002]
[1767783770505,0.92699759,3219.2,3218.4,0.94380143]
[1767783771214,0.92699759,3219.5,3218.4,0.94380143]
[1767783772401,0.92699759,3219.5,3218.5,0.03107037]
[1767783772715,0.92699759,3219.5,3218.6,0.94180143]
[1767783772907,0.92699759,3219.5,3218.4,0.002]
[1767783772908,0.92699759,3219.5,3218.4,0.94380143]
[1767783773110,0.92699759,3219.3,3218.4,0.94380143]
[1767783774588,0.92699759,3219.3,3218.4,0.002]
[1767783775714,0.92699759,3219.0,3218.4,0.002]
[1767783779121,4.92291684,3219.3,3218.4,0.94380143]
[1767783779304,0.92699759,3219.2,3218.7,0.002]
[1767783779614,0.92699759,3218.9,3218.0,0.94380143]
[1767783781918,0.001,3219.0,3218.0,0.97487663]
[1767783785519,0.95208713,3218.9,3218.0,0.97487663]
[1767783785688,0.95208713,3218.9,3218.0,0.99061541]
[1767783785892,0.95308713,3219.0,3218.0,0.99061541]
[1767783786219,0.95308713,3219.0,3218.1,1.13810175]
[1767783791051,0.95308713,3219.0,3218.4,0.002]
[1767783791333,0.001,3218.7,3218.4,0.002]
[1767783794647,0.001,3218.7,3218.5,0.95754021]
[1767783795137,0.001,3218.7,3218.4,0.817]
[1767783796109,0.001,3218.7,3218.4,1.95199423]
[1767783797950,0.001,3219.0,3218.5,0.95754021]
[1767783798154,0.001,3219.0,3218.5,0.98861058]
[1767783800009,0.001,3219.8,3219.0,0.95754021]
[1767783800212,0.001,3219.8,3219.1,0.95754021]
[1767783800508,0.001,3219.8,3219.1,1.13479423]
[1767783801513,0.001,3219.8,3219.1,0.17725402]
[1767783801740,0.95308713,3219.8,3219.2,0.815]
[1767783801919,0.95308713,3219.8,3219.0,0.03106554]
[1767783802238,0.95308713,3219.8,3219.1,0.815]
[1767783803239,0.95308713,3219.8,3218.9,0.98860672]
[1767783803409,0.95308713,3219.8,3219.0,0.815]
[1767783803608,0.001,3219.5,3219.0,0.815]
[1767783805549,0.001,3219.5,3218.8,0.95754021]
[1767783805715,0.001,3219.5,3219.1,0.815]
[1767783806221,0.001,3219.5,3219.2,0.95754021]
[1767783806423,0.001,3219.8,3219.3,1.13479423]
[1767783806651,0.95208713,3220.7,3219.7,0.95754021]
[1767783806816,0.95208713,3220.7,3219.8,1.77254021]
[1767783808139,0.95208713,3220.7,3219.9,0.95754021]
[1767783808338,0.95208713,3220.7,3220.0,0.17725402]
[1767783809537,0.95208713,3220.7,3219.8,0.815]
[1767783809715,0.95208713,3220.7,3219.6,0.98859996]
[1767783809917,0.95208713,3220.4,3219.3,1.16585688]
[1767783810117,0.95208713,3220.4,3219.7,0.814]
[1767783811241,0.95208713,3220.4,3219.7,0.99115402]
[1767783811638,0.95976639,3220.9,3219.7,0.99115402]
[1767783811945,0.95976639,3220.9,3219.7,0.814]
[1767783813952,3.99591925,3220.7,3219.8,0.814]
[1767783814253,0.95976639,3220.6,3219.8,0.814]
[1767783815153,0.96076639,3220.6,3219.8,0.814]
[1767783815525,0.96076639,3220.6,3219.5,0.98236569]
[1767783815736,0.95976639,3220.5,3219.8,0.814]
[1767783819661,0.95976639,3220.5,3219.8,1.79636569]
[1767783819955,0.001,3220.6,3219.9,0.98236569]
[1767783821533,0.96076639,3220.6,3219.9,0.98236569]
[1767783824868,0.96076639,3220.6,3220.0,0.814]
[1767783826958,0.001,3220.3,3220.0,0.814]
[1767783827758,0.001,3220.3,3220.0,0.99363657]
[1767783828760,0.001,3220.3,3220.0,1.97600226]
[1767783828962,0.001,3220.3,3220.1,0.98236569]
[1767783829870,0.001,3220.6,3220.3,0.98236569]
[1767783830072,0.001,3220.6,3220.1,0.03105493]
[1767783830367,0.001,3220.6,3220.2,0.20070572]
[1767783830985,0.001,3220.6,3220.2,1.18307141]
[1767783831969,0.001,3220.6,3220.3,1.01341869]
[1767783832876,0.001,3220.6,3220.3,0.98236569]
[1767783833654,0.16196385,3221.8,3220.6,0.98236569]
[1767783833655,0.95976639,3221.7,3220.6,0.98236569]
[1767783833838,1.15323941,3221.7,3220.7,0.814]
[1767783834255,0.95976639,3221.7,3220.7,0.814]
[1767783835073,0.95976639,3221.7,3220.8,0.98236569]
[1767783835457,0.95976639,3222.1,3220.8,0.98236569]
[1767783836667,0.95976639,3222.1,3220.5,0.98236569]
[1767783836668,0.95976639,3222.0,3220.5,0.98236569]
[1767783836869,0.95976639,3222.0,3220.6,1.79636569]
[1767783837070,0.95976639,3222.0,3220.6,1.16200226]
[1767783837376,0.95976639,3222.0,3220.7,0.814]
[1767783837882,0.95976639,3222.0,3220.8,0.98236569]
[1767783839084,0.001,3221.4,3220.8,0.98236569]
[1767783839584,0.001,3221.4,3220.9,0.814]
[1767783840080,0.001,3221.4,3221.0,1.13240685]
[1767783842180,0.91110409,3221.4,3221.0,0.17963657]
[1767783842361,0.91110409,3221.4,3220.9,0.814]
[1767783843983,0.91110409,3221.4,3219.6,0.95549973]
[1767783844161,0.91110409,3221.4,3219.8,0.95549973]
[1767783844356,0.91110409,3221.4,3220.0,0.95549973]
[1767783844552,0.91110409,3221.4,3220.2,0.95549973]
[1767783844785,0.91110409,3221.4,3220.3,1.76949973]
[1767783844981,0.91110409,3221.4,3220.3,1.9495552]
[1767783845657,0.91110409,3221.4,3220.4,0.95549973]
[1767783847289,0.91110409,3221.4,3220.4,0.98655177]
[1767783848380,0.91110409,3221.4,3220.4,0.95549973]
[1767783850507,0.001,3221.1,3220.4,0.95549973]
[1767783850701,0.91110409,3221.1,3220.5,0.19495552]
[1767783852600,0.91110409,3221.1,3220.4,0.95549973]
[1767783853604,0.001,3221.1,3220.4,0.95549973]
[1767783854578,0.001,3221.1,3220.6,0.95549973]
[1767783856703,0.001,3221.1,3220.5,0.814]
[1767783856912,0.91110409,3221.1,3220.5,0.814]
[1767783857088,0.91110409,3221.1,3220.5,0.17694997]
[1767783857289,0.91010409,3221.0,3220.4,0.814]
[1767783859784,0.91010409,3221.0,3220.4,1.76949973]
[1767783861083,0.91010409,3221.0,3220.4,0.814]
[1767783861820,0.91010409,3221.0,3220.2,0.95549973]
[1767783862130,0.91010409,3221.0,3219.8,0.95549973]
[1767783862298,0.91010409,3221.0,3220.0,0.95549973]
[1767783862502,0.91010409,3221.0,3220.1,0.814]
[1767783862705,0.91010409,3221.0,3220.1,1.76949973]
[1767783864088,0.91010409,3221.0,3220.2,0.9865537]
[1767783864289,0.91010409,3221.0,3220.2,0.95549973]
[1767783864715,0.91010409,3221.0,3220.3,0.98655273]
[1767783864895,0.001,3221.1,3220.3,1.135555]
[1767783865101,0.001,3221.1,3220.5,0.95549973]
[1767783865414,0.001,3221.1,3220.6,0.98654984]
[1767783865791,0.001,3221.1,3220.6,1.80054984]
[1767783867097,0.001,3221.1,3220.6,0.84505011]
[1767783867297,0.001,3221.1,3220.7,0.95549973]
[1767783867501,0.001,3221.1,3220.8,0.17694997]
[1767783868395,0.001,3221.1,3220.8,1.1324497]
[1767783868821,0.001,3221.1,3220.8,1.16349788]
[1767783869625,0.001,3221.1,3220.8,1.1324497]
[1767783872529,0.001,3221.1,3220.8,1.1352901]
[1767783873732,0.001,3221.1,3220.9,0.814]
[1767783876433,0.001,3221.1,3220.6,0.95834013]
[1767783876725,0.001,3221.1,3220.7,0.814]
[1767783877231,0.001,3221.1,3219.4,0.03106168]
[1767783877431,0.93464378,3221.1,3219.6,0.95834013]
[1767783877630,0.93464378,3221.1,3219.8,0.95834013]
[1767783877834,0.93464378,3221.1,3220.0,0.95834013]
[1767783878035,0.93464378,3221.1,3220.1,0.814]
[1767783883250,0.93464378,3221.1,3220.1,1.77234013]
[1767783883546,0.93464378,3221.1,3220.2,0.17723401]
[1767783885052,0.93464378,3221.1,3220.5,0.002]
[1767783885348,0.001,3220.8,3220.5,0.002]
[1767783886846,0.93464378,3220.8,3220.5,0.002]
[1767783887448,0.93464378,3220.8,3220.1,0.002]
[1767783887972,0.001,3220.8,3220.1,0.96034013]
[1767783888679,0.001,3220.8,3220.2,0.814]
[1767783889270,0.001,3220.8,3220.2,0.99143401]
[1767783890870,0.001,3220.8,3220.2,1.94977414]
[1767783891322,0.001,3220.8,3220.3,0.95834013]
[1767783897579,0.001,3220.8,3220.2,0.99143401]
[1767783898383,0.001,3220.8,3220.2,1.94977414]
[1767783898584,0.001,3220.8,3220.3,0.19517741]
[1767783899378,0.001,3220.5,3220.3,0.19517741]
[1767783899874,0.001,3220.5,3220.3,1.14117335]
[1767783901188,0.001,3220.8,3220.5,0.94599594]
[1767783901574,0.001,3220.8,3220.3,1.14117335]
[1767783901760,0.001,3220.8,3220.4,0.19551734]
[1767783903586,0.001,3220.8,3220.4,0.22656938]
[1767783903792,0.001,3220.8,3220.5,0.9024295]
[1767783905687,0.001,3221.1,3220.5,0.9024295]
[1767783905886,0.96922217,3221.0,3220.1,0.002]
[1767783906081,0.96922217,3221.0,3220.2,0.814]
[1767783906488,0.96922217,3220.9,3220.3,0.814]
[1767783906663,0.96922217,3220.9,3220.4,0.814]
[1767783908000,0.96922217,3220.9,3220.1,0.002]
[1767783908173,0.96922217,3220.9,3220.4,0.814]
[1767783908789,0.97022217,3221.1,3220.4,1.7164295]
[1767783908955,0.97022217,3221.1,3220.4,0.98564295]
[1767783910798,0.97022217,3221.1,3220.4,0.17364295]
[1767783910972,0.97022217,3221.1,3220.5,0.814]
[1767783913783,0.97022217,3221.1,3220.4,0.002]
[1767783913986,0.97022217,3221.1,3220.5,0.814]
[1767783917082,0.001,3221.1,3220.6,0.93347961]
[1767783917403,0.001,3221.1,3220.6,0.9024295]
[1767783917606,0.001,3221.1,3220.7,0.17164295]
[1767783918406,0.001,3221.1,3220.7,1.07407245]
[1767783919806,0.001,3221.1,3220.9,0.9024295]
[1767783920004,0.001,3221.1,3221.0,1.7164295]
[1767783921810,0.96922217,3221.7,3221.0,0.814]
[1767783921994,0.96922217,3221.7,3221.0,1.7164295]
[1767783922174,0.96922217,3221.9,3221.1,0.17164295]
[1767783922375,0.96922217,3221.9,3221.1,0.9024295]
[1767783923008,0.96922217,3221.9,3221.0,0.814]
[1767783923377,0.96922217,3221.9,3221.0,1.7164295]
[1767783924490,0.96922217,3221.9,3221.0,0.814]
[1767783924880,0.96922217,3221.9,3221.0,0.84504625]
[1767783925119,0.96922217,3221.9,3221.1,0.17474758]
[1767783926245,0.96922217,3221.9,3221.1,1.07717708]
[1767783926738,0.96922217,3221.9,3221.2,0.93347383]
[1767783927333,0.96922217,3221.9,3221.2,0.9024295]
[1767783929416,0.96922217,3221.9,3221.1,0.17474758]
[1767783929619,0.96922217,3221.9,3221.3,0.814]
[1767783930021,0.96922217,3221.9,3221.1,0.17474758]
[1767783930226,0.96922217,3221.9,3221.2,0.814]
[1767783931404,0.96922217,3221.9,3220.8,0.93347768]
[1767783931603,0.96922217,3221.9,3220.9,0.814]
[1767783931903,0.96922217,3221.9,3221.0,0.17164295]
[1767783933108,0.96922217,3221.9,3221.0,1.10506088]
[1767783933309,0.96922217,3221.9,3221.0,0.2026892]
[1767783934737,0.96922217,3221.9,3221.0,1.13610713]
[1767783935341,0.001,3221.6,3221.0,1.13610713]
[1767783935632,0.001,3221.6,3221.1,1.12842864]
[1767783935935,0.001,3221.6,3221.2,0.814]
[1767783936835,0.96393653,3221.6,3221.1,0.19501071]
[1767783937039,0.96393653,3221.6,3221.3,0.814]
[1767783937240,0.96393653,3221.6,3220.8,0.93341793]
[1767783937538,0.96393653,3221.6,3220.9,0.814]
[1767783937741,0.96393653,3221.6,3220.9,1.74741793]
[1767783942650,0.96393653,3221.6,3220.9,0.814]
[1767783943423,0.96393653,3221.6,3221.0,0.814]
[1767783945847,0.001,3221.6,3221.1,1.10815972]
[1767783946251,0.96293653,3221.4,3220.5,0.93341793]
[1767783946457,0.96293653,3221.4,3220.7,0.93341793]
[1767783946767,0.96293653,3221.4,3220.8,0.814]
[1767783947235,0.001,3221.3,3220.8,0.814]
[1767783947823,0.96393653,3221.3,3220.9,0.814]
[1767783948142,0.96293653,3221.1,3220.7,0.814]
[1767783948346,0.96293653,3221.1,3220.4,0.002]
[1767783949460,0.96293653,3221.1,3220.4,0.03305204]
[1767783949844,0.96293653,3221.1,3220.4,0.93541793]
[1767783951396,0.96293653,3221.1,3220.5,0.03105107]
[1767783952162,0.96293653,3221.1,3220.4,0.93541793]
[1767783952346,0.96293653,3221.1,3220.4,1.11035972]
[1767783952546,0.96393653,3221.3,3220.4,1.14141176]
[1767783952946,0.96393653,3221.3,3220.4,1.11035972]
[1767783953965,0.96393653,3221.3,3220.4,0.17694179]
[1767783954481,0.96393653,3221.3,3220.4,0.002]
[1767783955249,0.96393653,3221.3,3220.4,0.93541793]
[1767783956868,0.96393653,3221.3,3220.4,0.002]
[1767783957066,0.96393653,3221.3,3220.4,0.816]
[1767783957273,0.96393653,3221.3,3220.4,0.002]
[1767783959387,0.96393653,3221.3,3220.7,0.002]
[1767783959681,0.96393653,3221.0,3220.7,0.002]
[1767783960033,0.96393653,3221.0,3220.4,0.002]
[1767783961169,0.001,3221.0,3220.5,0.96337362]
[1767783961359,0.001,3221.0,3220.4,0.002]
[1767783961556,0.001,3221.0,3220.4,0.99642566]
[1767783966080,0.32192638,3222.7,3220.8,0.97255615]
[1767783966081,0.97096091,3222.2,3220.8,0.97255615]
[1767783966261,0.97096091,3222.0,3220.8,0.814]
[1767783966661,0.97096091,3222.0,3220.8,0.84504818]
[1767783967083,0.97096091,3222.0,3220.8,1.81760433]
[1767783968076,0.97096091,3222.0,3220.9,0.97255615]
[1767783968289,0.97096091,3222.0,3220.9,1.00360337]
[1767783968473,0.97096091,3222.0,3221.1,0.97255615]
[1767783970355,0.97096091,3222.6,3221.1,1.00360144]
[1767783970575,0.16192638,3222.7,3221.4,0.97255615]
[1767783970752,0.97096091,3222.8,3221.6,0.97255615]
[1767783970949,0.97096091,3222.8,3221.7,0.17865562]
[1767783971153,0.97096091,3222.8,3221.6,0.97255615]
[1767783971452,0.97096091,3222.8,3221.7,0.814]
[1767783971853,0.001,3221.7,3221.2,0.97255615]
[1767783972082,0.97096091,3221.8,3221.3,0.814]
[1767783972289,0.97096091,3222.7,3221.4,0.97255615]
[1767783973772,0.97096091,3222.7,3221.4,1.15121177]
[1767783974088,0.97096091,3223.2,3222.0,0.97255615]
[1767783976290,0.97096091,3223.2,3221.9,0.814]
[1767783979790,0.97096091,3223.2,3221.6,1.00359662]
[1767783979990,0.97096091,3223.2,3221.9,0.814]
[1767783980377,0.97096091,3223.2,3221.6,0.03104047]
[1767783980690,0.97096091,3223.2,3221.5,0.03104144]
[1767783980885,0.97096091,3223.2,3221.6,0.814]
[1767783981190,0.97096091,3223.2,3221.7,0.18175976]
[1767783982792,0.97096091,3223.1,3221.7,0.18175976]
[1767783982992,0.97096091,3223.1,3221.7,1.15431591]
[1767783983682,0.97096091,3222.8,3221.7,1.15431591]
[1767783992400,0.97096091,3222.8,3221.7,0.97255615]
[1767783993778,0.001,3222.9,3221.7,0.97255615]
[1767783994091,0.001,3222.9,3221.7,1.00359566]
[1767783995392,0.001,3222.9,3222.1,0.91353769]
[1767783995596,0.001,3222.9,3222.3,0.91353769]
[1767783996473,0.001,3222.9,3222.1,0.814]
[1767783996474,0.970988,3222.9,3222.1,0.814]
[1767783997112,0.970988,3222.9,3222.0,0.91553769]
[1767783998088,0.970988,3222.9,3222.0,1.08849146]
[1767784001828,0.970988,3222.9,3222.0,1.90249146]
[1767784002329,0.970988,3222.9,3222.1,0.91353769]
[1767784003720,0.972988,3223.3,3222.1,0.91353769]
[1767784003946,0.4298518,3224.2,3222.9,1.07479998]
[1767784003947,5.969988,3223.8,3222.9,1.07479998]
[1767784004118,5.0,3223.8,3223.1,0.91353769]
[1767784004412,0.969988,3223.8,3223.2,0.98675377]
[1767784004714,0.969988,3223.8,3223.1,0.91353769]
[1767784005017,0.969988,3223.8,3223.2,0.814]
[1767784005202,0.969988,3223.8,3222.9,1.88879998]
[1767784006608,0.969988,3223.8,3223.0,0.91353769]
[1767784007618,0.969988,3223.8,3222.9,0.16126229]
[1767784007619,0.969988,3223.8,3223.1,0.814]
[1767784007817,0.969988,3223.8,3222.9,0.16126229]
[1767784008120,0.969988,3223.8,3223.0,0.814]
[1767784008319,0.001,3223.5,3223.0,0.814]
[1767784008993,0.001,3223.5,3223.1,0.91353769]
[1767784009188,0.001,3223.5,3223.3,0.91353769]
[1767784010449,0.969988,3224.3,3223.2,0.98675377]
[1767784010450,0.969988,3225.5,3223.9,0.91353769]
[1767784010592,1.865,3228.1,3222.5,0.25952256]
[1767784010593,0.969988,3225.2,3223.1,0.91353769]
[1767784010790,0.969988,3225.1,3223.1,0.91353769]
[1767784011006,0.969988,3225.1,3222.9,0.03102795]
[1767784011007,0.969988,3225.1,3223.2,0.814]
[1767784011205,0.969988,3224.9,3223.2,0.814]
[1767784011520,0.969988,3224.7,3223.1,0.91353769]
[1767784011728,0.969988,3224.7,3223.2,0.813]
[1767784011911,0.969988,3224.6,3223.2,0.813]
[1767784012316,0.969988,3224.6,3223.2,0.91353769]
[1767784012521,0.969988,3224.6,3223.3,1.08619146]
[1767784016634,0.969988,3224.5,3223.3,1.08619146]
[1767784018114,0.969988,3224.2,3223.3,0.91353769]
[1767784018832,0.969988,3224.5,3223.0,0.91353769]
[1767784019021,0.969988,3224.4,3223.0,0.91353769]
[1767784020634,0.92750507,3224.1,3223.0,0.91353769]
[1767784020843,0.49113584,3224.0,3223.0,0.91353769]
[1767784021510,1.41864091,3224.0,3223.0,0.91353769]
[1767784021705,0.99851265,3223.9,3223.0,0.91353769]
[1767784022340,0.99851265,3223.8,3223.3,0.002]
[1767784024850,0.99851265,3223.8,3222.8,0.97460298]
[1767784025141,0.49113584,3224.0,3222.3,0.97660298]
[1767784025142,0.99851265,3223.5,3222.3,0.97660298]
[1767784027238,0.99851265,3223.4,3222.3,0.97660298]
[1767784029113,4.98236594,3223.2,3222.3,0.97660298]
[1767784029311,0.99851265,3223.1,3222.3,0.97660298]
[1767784030116,4.98236594,3222.9,3222.3,0.002]
[1767784030316,5.48060253,3222.9,3222.1,0.97460298]
[1767784030716,0.99851265,3222.8,3222.0,0.002]
[1767784035746,0.99851265,3222.8,3222.3,0.002]
[1767784035922,0.99851265,3222.8,3222.0,0.002]
[1767784038256,4.48208988,3222.9,3222.0,0.002]
[1767784038257,0.49823659,3222.9,3222.0,0.97660298]
[1767784038460,1.81051265,3223.0,3222.0,0.97660298]
[1767784038834,0.812,3223.1,3222.0,0.97660298]
[1767784039035,1.81051265,3223.2,3222.0,0.97660298]
[1767784039665,0.99851265,3223.1,3222.0,0.97660298]
[1767784042366,0.16,3223.8,3222.1,0.97460298]
[1767784042544,1.81051265,3223.9,3222.2,1.18469797]
[1767784042737,0.99851265,3223.9,3222.3,0.97460298]
[1767784043239,5.79436594,3224.1,3222.5,0.97460298]
[1767784043468,0.99851265,3224.0,3222.7,0.97460298]
[1767784043768,0.99851265,3224.0,3222.9,0.97460298]
[1767784043972,0.99851265,3224.0,3222.9,0.97260298]
[1767784044861,0.99851265,3224.0,3222.8,0.1788603]
[1767784045236,0.99851265,3224.0,3222.8,1.15346328]
[1767784046442,1.81051265,3224.0,3222.8,1.15346328]
[1767784046672,0.99851265,3223.9,3222.8,1.15346328]
[1767784048295,0.99851265,3224.3,3222.8,1.15346328]
[1767784048575,0.99851265,3224.3,3223.0,0.97460298]
[1767784048576,0.001,3223.7,3223.0,0.97460298]
[1767784048738,0.001,3223.7,3223.2,0.97460298]
[1767784051642,0.99851265,3224.6,3223.6,0.97460298]
[1767784052276,0.98711014,3224.2,3223.1,0.92172282]
[1767784052577,0.98711014,3224.2,3222.8,0.1788603]
[1767784052578,0.98711014,3224.2,3223.4,0.92172282]
[1767784052877,0.98711014,3224.2,3223.3,0.92172282]
[1767784060664,0.98711014,3224.2,3223.6,0.002]
[1767784060866,0.001,3223.9,3223.6,0.002]
[1767784062995,0.001,3223.9,3223.3,0.92372282]
[1767784067008,0.001,3223.9,3223.5,0.92172282]
[1767784072097,0.98711014,3224.9,3223.9,0.92172282]
[1767784076491,0.98711014,3225.4,3223.9,0.92172282]
[1767784076697,0.98711014,3225.3,3223.9,0.92172282]
[1767784077099,0.98711014,3225.3,3223.7,4.01487354]
[1767784077100,0.98711014,3225.3,3224.1,0.92172282]
[1767784078616,0.98711014,3225.3,3224.1,1.73472282]
[1767784078785,0.98711014,3225.3,3224.2,0.92172282]
[1767784080802,0.98711014,3225.3,3223.6,0.002]
[1767784081003,0.98711014,3225.3,3223.8,0.96797355]
[1767784081208,0.98711014,3225.3,3224.0,0.96797355]
[1767784085311,0.98711014,3225.3,3223.8,0.90477055]
[1767784085536,0.91247589,3224.9,3223.8,0.90477055]
[1767784085828,0.91247589,3224.9,3224.0,0.90277055]
[1767784086302,1.08492348,3224.9,3224.0,0.90277055]
[1767784087105,1.08492348,3224.9,3223.8,0.90477055]
[1767784087754,1.08492348,3224.9,3223.8,0.002]
[1767784088033,0.91247589,3224.8,3223.6,0.002]
[1767784088411,0.91247589,3224.8,3223.6,0.90477055]
[1767784089826,0.91247589,3224.6,3223.6,0.90477055]
[1767784090027,1.08482348,3224.5,3223.6,0.90477055]
[1767784090935,1.08482348,3224.5,3223.6,0.002]
[1767784096050,1.08482348,3224.5,3223.6,0.90477055]
[1767784096843,1.08482348,3224.5,3223.6,0.002]
[1767784107962,0.91247589,3224.3,3223.6,0.002]
[1767784108146,0.91247589,3224.1,3223.5,0.002]
[1767784110370,0.91247589,3224.1,3223.8,0.002]
[1767784110673,0.91247589,3224.1,3223.5,0.002]
[1767784111186,0.91247589,3224.1,3223.3,0.002]
[1767784118997,0.813,3224.2,3223.3,0.9977248]
[1767784119169,0.97714337,3224.1,3223.3,0.9977248]
[1767784119498,0.17901434,3224.0,3223.3,0.9977248]
[1767784119898,1.15615771,3224.0,3222.4,0.03103277]
[1767784120059,0.97714337,3224.0,3222.5,0.9957248]
[1767784123181,0.001,3223.8,3222.9,0.9957248]
[1767784123382,0.97714337,3223.7,3222.9,0.9957248]
[1767784124871,0.97714337,3223.7,3222.8,0.002]
[1767784125199,0.97714337,3223.7,3222.9,0.9957248]
[1767784132791,0.001,3223.8,3222.9,0.9957248]
[1767784133204,0.97814337,3223.8,3222.9,0.9957248]
[1767784137210,0.97814337,3223.8,3223.2,0.002]
[1767784137410,0.001,3223.5,3223.2,0.002]
[1767784140311,0.001,3223.5,3223.2,0.9977248]
[1767784142816,0.001,3223.5,3223.2,0.002]
[1767784143897,0.001,3223.5,3222.9,0.90863216]
[1767784144097,0.98151938,3223.5,3222.8,0.002]
[1767784145113,0.98151938,3223.5,3222.8,0.91063216]
[1767784149326,0.95006024,3223.4,3222.8,0.002]
[1767784149490,1.1432182,3223.4,3222.8,0.002]
[1767784149818,1.1432182,3223.4,3222.6,0.9640921]